Cogmind - Beta 16 @@@ ROGUE MODE // 2026.02.06 @ 20:20:17 Player: the Result: Destroyed by D-53 Grenadier with Mini Grenade Launcher Performance ------------- Evolutions (0) 0 Regions Visited (2) 400 Robots Destroyed (36) 180 Value Destroyed (689) 689 Prototype IDs (6) 120 Alien Tech Used (0) 0 Bonus (0) 0 TOTAL SCORE: 1389 Bonus ------- None Cogmind --------- Core Integrity 0/250 Matter 238/300 Energy 265/265 System Corruption 1% Temperature Cool (0) Movement Treading (160) Location -10/Mines Parts ------- > --- POWER (1) -------- Improved Ion Engine > --- PROPULSION (2) --- Light Treads Light Treads > --- UTILITY (2) ------ Large Storage Unit Seismic Detector > --- WEAPON (2) ------- Assault Rifle Assault Rifle > --- INVENTORY (15) --- Light Nuclear Core Light Treads Light Treads Seismic Detector Light Armor Plating Hacking Suite Authchip [Propulsion] Authchip [Device] Authchip [Weapon] Beam Rifle Assault Rifle Mini Grenade Launcher Mini Grenade Launcher Datajack Mining Laser Peak State ------------ > --- POWER ------------ Improved Ion Engine > --- PROPULSION ------- Light Treads Light Treads > --- UTILITY ---------- Large Storage Unit Seismic Detector > --- WEAPON ----------- Assault Rifle Mini Grenade Launcher > --- INVENTORY -------- Light Nuclear Core Light Treads Light Treads Seismic Detector Light Armor Plating Hacking Suite Authchip [Propulsion] Authchip [Device] Authchip [Weapon] Beam Rifle Assault Rifle Assault Rifle Mini Grenade Launcher Datajack Mining Laser [Rating: 12] Favorites ----------- Power Light Ion Engine Engine Light Ion Engine Power Core Light Nuclear Core Propulsion Light Treads Treads Light Treads Utility Seismic Detector Device Seismic Detector Storage Large Storage Unit Weapon Assault Rifle Energy Gun Medium Laser Ballistic Gun Assault Rifle Launcher Mini Grenade Launcher Special Weapon Mining Laser Build | -11 -10 -10 ------- Run | Yrd Mat Min Slots Evolved . | . . . Power . | . . . Propulsion . | . . . Utility . | . . . Weapon . | . . . Parts Attached 19 | 7 8 4 Power 4 | 1 2 1 Engine 3 | 1 1 1 Core 1 | . 1 . Reactor . | . . . Propulsion 3 | 2 . 1 Treads 3 | 2 . 1 Leg . | . . . Wheel . | . . . Hover . | . . . Flight . | . . . Utility 4 | 2 2 . Device 2 | 1 1 . Storage 2 | 1 1 . Processor . | . . . Hackware . | . . . Protection . | . . . Artifact . | . . . Weapon 8 | 2 4 2 Energy Gun 1 | 1 . . Energy Cannon . | . . . Ballistic Gun 4 | 1 2 1 Ballistic Cannon . | . . . Launcher 1 | . . 1 Special Weapon 2 | . 2 . Impact Weapon . | . . . Slashing Weapon . | . . . Piercing Weapon . | . . . Special Melee Weapon . | . . . Unidentified Prototypes . | . . . Parts Lost 1 | . . 1 Power . | . . . Propulsion 1 | . . 1 Utility . | . . . Weapon . | . . . Highest Loss Streak 1 | . . 1 To Critical Strikes . | . . . Average Backups 10 | 2 9 14 Power . | . 1 1 Propulsion . | . . 2 Utility 4 | . 3 5 Weapon 3 | 1 3 5 Tool/Special . | . . . Unused Backups 18 | . 4 14 Power . | . . . Propulsion 4 | . . 4 Utility 8 | . 2 6 Weapon 5 | . 2 3 Tool/Special 1 | . . 1 Average Slot Usage (%) 99 | . 99 99 Engine 13 | . 13 14 Treads 27 | . 27 27 Device 14 | . 14 14 Storage 14 | . 14 14 Energy Gun 6 | . 7 . Ballistic Gun 18 | . 18 21 Launcher 1 | . . 6 Special Weapon 2 | . 2 . Peak Build Rating 12 | 7 10 12 Average Rating 8 | 5 8 11 On Entrance 5 | . 7 10 Avg Prop Armor Cover (%) . | . . . Naked Turns . | . . . Heaviest Build 32 | 13 28 32 Greatest Support 40 | 40 40 40 Greatest Overweight (x) 1 | . . 1 Average Overweight (x) . | . . . Largest Inventory Capacity 15 | 8 15 15 Average Capacity 13 | 7 13 15 Most Carried 15 | 5 15 15 Average Carried 10 | 2 9 14 Final Capacity 15 | 8 15 15 Final Carried 15 | 5 15 15 Class Distribution -------------------- 100% | Mutant Dominant Class ---------------- Mutant | -10/Materials Mutant | -10/Mines Resources | -11 -10 -10 ----------- Run | Yrd Mat Min Matter Collected 880 | 244 516 120 Remotely . | . . . Salvage Created 1124 | 139 721 264 Parts 76 | 12 45 19 Haulers Intercepted 2 | . 2 . Recyclers Shooed 3 | . . 3 Parts Field Recycled . | . . . Retrieved Matter . | . . . Parts Self-Destructed . | . . . Prevented . | . . . Parts Restored . | . . . Kills | -11 -10 -10 ------- Run | Yrd Mat Min Combat Hostiles Destroyed 18 | . 13 5 Guns 16 | . 13 3 AOE 2 | . . 2 Classes Destroyed 11 | 2 7 2 Worker 3 | . 2 1 Builder 1 | . 1 . Tunneler 6 | 4 1 1 Hauler 2 | . 2 . Recycler 2 | 1 . 1 Operator 1 | . 1 . Watcher 3 | . 3 . Swarmer 5 | . 3 2 Grunt 10 | . 10 . Sentry 2 | . . 2 Demolisher 1 | . . 1 Best Kill Streak 5 | 5 4 4 Combat Bots Only 4 | . 4 2 Max Kills in Single Turn 2 | 1 1 2 Gunslinging . | . . . Exploded 1 | . . 1 Melee . | . . . Uniques/NPCs Destroyed . | . . . Combat | -11 -10 -10 -------- Run | Yrd Mat Min Hostile Shots Fired 97 | . 68 29 Missed 24 | . 19 5 Hits 73 | . 49 24 Projectile 73 | . 49 24 AOE 10 | . . 10 Critical Strikes 3 | . 3 . Damage Taken 1068 | . 518 550 Core 257 | . 122 135 Absorbed by Shields . | . . . Regen/Repaired (Parts) 115 | . 115 . Core Remaining (%) 100 | 100 . . Volleys Fired 121 | 14 87 20 Largest 2 | 2 2 2 Hottest 100 | 70 100 40 Shots Fired 212 | 25 149 38 Gun 203 | 25 142 36 Cannon . | . . . Launcher 2 | . . 2 Special 7 | . 7 . Kinetic 143 | 14 93 36 Thermal 67 | 11 56 . Explosive 2 | . . 2 Electromagnetic . | . . . Robot Hit Streak 11 | 4 11 10 Robot Miss Streak 4 | 4 4 3 Penetration Max . | . . . Secondary Targets 2 | . 1 1 Max Gunslinging Chain 1 | . 1 1 Shots Hit Robots 117 | 11 84 22 Core Hits 57 | 6 37 14 Critical Kills . | . . . Critical Parts Destroyed . | . . . Critical Strikes 2 | . 2 . Burn 2 | . 2 . Melee Attacks . | . . . Impact . | . . . Slashing . | . . . Piercing . | . . . Sneak Attacks . | . . . Combat Hostiles . | . . . Follow-up Attacks . | . . . Damage Inflicted 1712 | 183 1116 413 Guns 1528 | 183 1074 271 Cannons . | . . . Explosions 140 | . . 140 Melee . | . . . Ramming 44 | . 42 2 Kinetic 1039 | 95 673 271 Thermal 489 | 88 401 . Explosive 140 | . . 140 Electromagnetic . | . . . Impact . | . . . Slashing . | . . . Piercing . | . . . Highest Corruption 1 | . 1 1 Average Corruption 1 | . 1 1 Corruption Purged . | . . . Corruption Blocked . | . . . Effects 9 | . 6 3 Message Errors 4 | . 3 1 Matter Fused 1 | . . 1 Heat Flow Errors 1 | . 1 . Energy Discharges 1 | . 1 . Data Loss (minor) 2 | . 1 1 Overload Shots . | . . . Overflow Damage . | . . . Projectiles . | . . . Explosions . | . . . Melee . | . . . Knockbacks 1 | . 1 . Impact 1 | . 1 . Kinetic . | . . . Secondary . | . . . Self-Inflicted Damage . | . . . Shots . | . . . Rammed 8 | . 7 1 Targets Rammed 8 | . 7 1 Kicked . | . . . Crushed . | . . . Highest Temperature 192 | 36 192 4 Average Temperature 31 | 16 34 2 Received Heat Transfer 324 | . 270 54 Siege Activations . | . . . Martial Activations . | . . . Shielding Activations . | . . . Robots Disrupted . | . . . Combat Hostiles . | . . . Robots Corrupted . | . . . Combat Hostiles . | . . . Parts Fried . | . . . Impact Corruptions . | . . . Robots Melted . | . . . Combat Hostiles . | . . . Parts Melted . | . . . Heat Transferred 1591 | 259 1332 . Parts Sabotaged . | . . . Parts Stolen . | . . . Parts Stripped . | . . . Power Chain Reactions . | . . . Alert | -11 -10 -10 ------- Run | Yrd Mat Min Maximum Alert Level . | . . . Low Security (%) 100 | 100 100 100 Level 1 . | . . . Level 2 . | . . . Level 3 . | . . . Level 4 . | . . . Level 5 . | . . . High Security . | . . . Max Security . | . . . Peak Influence 112 | 15 112 55 Initial 22 | . . 22 Average 22 | 2 25 14 Influence Increases 714 | 25 554 135 Destroy 0b10 Robot/C 360 | . 260 100 Destroy 0b10 Robot/NC 90 | 25 50 15 Destroy Leader 70 | . 60 10 Successful Hack 70 | . 70 . Select Force Hacks 60 | . 60 . Destroy Structure 19 | . 9 10 Lose Combat Pursuer 45 | . 45 . Influence Decreases 677 | 25 496 156 Entered New Map 36 | . . 36 Time Decay 535 | 25 400 110 Lost Part 10 | . . 10 Purge Threat 96 | . 96 . Squads Dispatched 3 | . 3 . Investigation 2 | . 2 . Extermination . | . . . Reinforcement 1 | . 1 . Assault . | . . . Garrison . | . . . Intercept . | . . . Searches Triggered . | . . . Construction Impeded . | . . . Haulers Reinforced . | . . . Active Scanning Responses . | . . . Cargo Convoy Interrupts . | . . . Stealth | -11 -10 -10 --------- Run | Yrd Mat Min Distress Signals 1 | . 1 . Communications Jammed . | . . . Distress Signals . | . . . Times Spotted 31 | . 24 7 Peak Tracking Total 5 | . 5 3 Tactical Retreats 3 | . 3 . Traps | -11 -10 -10 ------- Run | Yrd Mat Min Traps Triggered 2 | . 2 . Indirectly . | . . . Trap Hack Attempts . | . . . Triggered . | . . . Disarmed . | . . . Reprogrammed . | . . . Reused . | . . . Traps Extracted . | . . . Installed . | . . . Triggered . | . . . Machines | -11 -10 -10 ---------- Run | Yrd Mat Min Machines Disabled . | . . . Max in Single Turn . | . . . Machines Repaired . | . . . Machines Dismantled . | . . . Machines Sabotaged . | . . . Overloaded Fab Kills . | . . . Hacking | -11 -10 -10 --------- Run | Yrd Mat Min Machines Accessed 10 | . 10 . Terminals 7 | . 7 . Fabricators . | . . . Repair Stations 1 | . 1 . Recycling Units 2 | . 2 . Scanalyzers . | . . . Garrison Access . | . . . Total Hacks 38 | . 38 . Successful 29 | . 29 . Failed 8 | . 8 . Catastrophic . | . . . Database Lockouts 1 | . 1 . Manual 26 | . 26 . Terminals 32 | . 32 . Fabricators . | . . . Repair Stations 2 | . 2 . Recycling Units 4 | . 4 . Scanalyzers . | . . . Garrison Access . | . . . Terminal Hacks 12 | . 12 . Part Schematic 1 | . 1 . Robot Analysis 1 | . 1 . Prototype ID Bank 5 | . 5 . Terminal Index 1 | . 1 . Unreport Threat 1 | . 1 . Surveillance Status 1 | . 1 . Hauler Manifests 1 | . 1 . Registered Components 1 | . 1 . Fabricator Hacks . | . . . Repair Station Hacks 2 | . 2 . Scan Component 1 | . 1 . Repair 1 | . 1 . Recycling Unit Hacks 1 | . 1 . Retrieve Components 1 | . 1 . Scanalyzer . | . . . Garrison Access Hacks . | . . . Unauthorized Hacks 14 | . 14 . Terminals 12 | . 12 . Track 2 | . 2 . Assimilate 1 | . 1 . Botnet 3 | . 3 . Operators 1 | . 1 . Skim 5 | . 5 . Fabricators . | . . . Repair Stations . | . . . Recycling Units 2 | . 2 . Tunnel 2 | . 2 . Scanalyzers . | . . . Garrison Access . | . . . Data Cores Recovered . | . . . Used . | . . . Hacking Detections 8 | . 8 . Full Trace Events . | . . . Feedback Events . | . . . Feedback Blocked . | . . . Robot Schematics Acquired . | . . . Robots Built . | . . . Authchips . | . . . Time . | . . . Total Robot Build Rating . | . . . Part Schematics Acquired 1 | . 1 . Parts Built . | . . . Authchips . | . . . Time . | . . . Total Part Build Rating . | . . . Part Studies Acquired . | . . . Parts Repaired 1 | . 1 . Time 26 | . 26 . Parts Recycled . | . . . Recycled Matter . | . . . Retrieved Matter . | . . . Retrieved Components 9 | . 9 . Parts Scanalyzed . | . . . Part Schematics Acquired . | . . . Parts Damaged . | . . . Bothacking | -11 -10 -10 ------------ Run | Yrd Mat Min Used RIF Installer . | . . . Robots Hacked . | . . . Non-combat . | . . . Combat . | . . . Robot Hacks Applied . | . . . Relay Couplers Released . | . . . Fabnet Peak Effective % . | . . . Robots Rewired . | . . . Allies Hacked . | . . . Hacks Repelled . | . . . Allies | -11 -10 -10 -------- Run | Yrd Mat Min Total Allies 1 | . 1 . Largest Group 1 | . 1 . Highest-Rated Group 10 | . 10 . Highest-Rated Ally 10 | . 10 . Total Orders 8 | . 8 . STAY 4 | . 4 . FOLLOW 4 | . 4 . Ally Attacks . | . . . Total Damage . | . . . Kills . | . . . Allies Corrupted . | . . . Allies Melted . | . . . Intel | -11 -10 -10 ------- Run | Yrd Mat Min Active Infowar (turns) 2639 | 40 2191 408 Seismic 2639 | 40 2191 408 Robot Analysis Total 1 | . 1 . Derelict Logs Recovered 1 | . . 1 Drone Launches . | . . . Drone Recoveries . | . . . Exploration | -11 -10 -10 ------------- Run | Yrd Mat Min Turns Passed 2731 | 132 2191 408 Spaces Moved 1300 | 52 1041 207 Core 6 | 6 . . Treads 1294 | 46 1041 207 Legs . | . . . Wheels . | . . . Hover . | . . . Flight . | . . . Fastest Speed 50 | 50 160 160 Average Speed 159 | 147 160 160 Slowest Speed 240 | 160 160 240 Overloaded Moves . | . . . Propulsion Burnouts . | . . . Robots Hopped . | . . . Potential Cave-ins . | . . . Cave-ins Triggered . | . . . Exploration Rate (%) 52 | 5 98 54 Regions Visited 2 Branch Regions 1 Pre-discovered Areas 2 | . 2 . Known Exits Taken 1 | . 1 . Unknown Exits Taken 1 | 1 . . Scrap Searched 1 | . . 1 Spaces Dug 12 | . 5 7 Terrain Destroyed 23 | . 6 17 Melee . | . . . Projectile 6 | . 6 . AOE 17 | . . 17 Terrain Rammed . | . . . Walls Destroyed . | . . . Machines Disabled . | . . . Actions | -11 -10 -10 --------- Run | Yrd Mat Min Total 1721 | 79 1396 246 Wait 224 | . 220 4 Move 1298 | 51 1040 207 Hop . | . . . Pick Up 25 | 6 15 4 Fast Attach 11 | 7 3 1 Attach 1 | . 1 . Detach . | . . . Swap 18 | . 14 4 Drop 15 | 1 9 5 Fire 121 | 14 87 20 Melee . | . . . Ram . | . . . Kick . | . . . Crush 8 | . 7 1 Escape Stasis . | . . . Rewire . | . . . Trap . | . . . Miscellaneous . | . . . Route ------- -11/Scrapyard -10/Materials (discovered 6 exits: *Mat x3 / *Min x2 / *Sub) -10/Mines (discovered 3 exits: *Mat x2 / Sub) History --------- Turn | Location | Event 4 | -11/Scrapyard | Discovered new exit (range 15) 133 | -11/Scrapyard | Entered Materials 317 | -10/Materials | Build established: Mutant 600 | -10/Materials | Discovered new exit (range 6) 812 | -10/Materials | Central database locked down 854 | -10/Materials | Discovered new exit (range 11) 857 | -10/Materials | Discovered new exit (range 14) 1065 | -10/Materials | Discovered new exit (range 12) 1289 | -10/Materials | Learned 2 Mines zone layouts 1364 | -10/Materials | Identified exit to Mines 1364 | -10/Materials | Identified exit to Materials 1482 | -10/Materials | Learned Storage emergency access door positions 1528 | -10/Materials | Learned location of 2 exits from Subcaves 1566 | -10/Materials | Learned location of 2 exits from Mines 1616 | -10/Materials | Learned location of 2 exits from Materials 1668 | -10/Materials | Repaired Lgt. Treads 1750 | -10/Materials | Learned Storage emergency access door positions 2324 | -10/Materials | Entered Mines 2325 | -10/Mines | Identified exit to Subcaves 2331 | -10/Mines | Learned Materials trap positions 2350 | -10/Mines | Core integrity fell below 50% 2689 | -10/Mines | Assembled infested the area 2694 | -10/Mines | Assisted by a Guerilla fighting off Assembled 2727 | -10/Mines | Core integrity fell below 20% 2732 | -10/Mines | Destroyed by D-53 Grenadier with Mini Grenade Launcher Last Messages --------------- 02654_ U-05 Engineer builds a Wall. 02689_ ALERT: Infestation in the mines, dispatching Demolisher response squad. 02694_ A derelict emerges from the shadows: "You need to get out of here! I've been tracking a group of Assembled to figure out where they're coming from, and they're closing on this area, come on!" 02711_ HV Slug penetrates D-53 Grenadier. 02711_ D-53 Grenadier suffers critical hit (Destroy). 02715_ 5J-Y3P(h) destroyed. 02724_ U-05 Engineer lays Concrete. 02726_ U-05 Engineer builds a Wall. 02727_ The unstable cave ceiling collapses. 02730_ D-53 Grenadier destroyed. 02730_ Switching to secondary target: D-53 Grenadier. 02730_ U-05 Engineer builds a Wall. 02732_ The unstable cave ceiling collapses. Map ----- +----------------------------------------------------+ | ????????????????????????????????????????# # | | ?????????????????????????????????????????# #? | | ????????????????????????????????????????## ## | | ????????????????????????????????????????# | | ????????????????????????????????????????# | | ????????????????????????????????????????## # | | ?????????????????????????????????????????## # | | ??????????????????????????????????????????## # | | ???????????????????????????????????????????# ## | | ???????????????????????????????????????????# ##? | | ???????????????????????????????????????????# ##?? | | ???????????????????????????????????????????# #??? | | ???????????????????????????????????????????# #??? | | ???????????????????????????????????????????# #??? | | ???????????????????????????????????????????# #??? | | ???????????????????????????????????????????# #??? | | ???????????????????????????###?????????????# #??? | | ??????????????????????????? #?????????????# #??? | | ???????????????????????????# #?????????????# #??? | | ??????????????????????###### #????????###### #??? | | ?????????????#???#???## # ########## #??? | | ????????????## ## ?# #??? | | ??????????? # # ######### ######??? | | ?????????? ! #???##### #???????? | | ?????????? !%= ###### ## *=##???#### | | ?????????? =%d @ u ## # [ ### | | ?????????? ## ## # = * | | ??????????# ## ## # # | | ???????????## ## # ### ## # ## # | | ????????????## ## ?? #### ## [ #?# # | | ???????????????????##########?# #### #??# ## | | ?????????????????????????????## #??# ##???###? | | ???????????????????????????### #??# ##??????? | | ??????????????????????????## ##?# ###????? | | ??????????????????????????# ### ##???? | | ??????????????????????????# ## ##??? | | ?????